Cogmind - Beta 13 *** ADVENTURER MODE // 2024.03.15 @ 22:54:54 Player: NED1124 Result: Destroyed by Y-64 Sentinel with KE Penetrator Performance ------------- Evolutions (5) 2500 Regions Visited (9) 1800 Robots Destroyed (57) 285 Value Destroyed (1903) 1903 Prototype IDs (2) 40 Alien Tech Used (0) 0 Bonus (-33) -33 TOTAL SCORE: 6495 Bonus ------- Follower Combat Kills 85 Friendly Fire -118 Cogmind --------- Core Integrity 0/1000 Matter 292/300 Energy 99/100 System Corruption 0% Temperature Cool (0) Movement Core (50) Location -5/Extension Parts ------- > --- POWER (2) -------- (None) > --- PROPULSION (4) --- (None) > --- UTILITY (9) ------ (None) > --- WEAPON (2) ------- (None) > --- INVENTORY (5) ---- Launcher Guidance Computer Armor Integrity Analyzer Armor Integrity Analyzer Improved Weapon Cycler Arc Projector Peak State ------------ > --- POWER ------------ Nuclear Core Heavy Deuterium Engine > --- PROPULSION ------- Aluminum Leg Titanium Leg Titanium Leg > --- UTILITY ---------- Medium Storage Unit Weight Redist. System Visual Processing Unit Improved Signal Interpreter Advanced Targeting Computer Hacking Suite Corruption Screen > --- WEAPON ----------- Pulse Rifle Rocket Launcher > --- INVENTORY -------- Improved Targeting Computer Arc Projector Field Laser Light Assault Rifle Light Assault Rifle Enhanced Autogun [Rating: 39] Favorites ----------- Power Light Ion Engine Engine Light Ion Engine Power Core Nuclear Core Propulsion Aluminum Leg Leg Aluminum Leg Utility Medium Storage Unit Device Heat Sink Storage Medium Storage Unit Processor Visual Processing Unit Hackware Hacking Suite Protection Hardened Light Armor Plating Weapon Assault Rifle Energy Gun Pulse Rifle Energy Cannon Advanced Plasma Cannon Ballistic Gun Assault Rifle Launcher Rocket Launcher Build | -11 -10 -10 -9 -9 -8 -7 -6 -5 -5 ------- Run | Yrd Mat Min Mat Min Mat Fac Fac Fac Ext Slots Evolved 10 | . . . 2 . 2 2 2 2 . Power 1 | . . . . . . 1 . . . Propulsion 2 | . . . . . 1 . . 1 . Utility 7 | . . . 2 . 1 1 2 1 . Weapon . | . . . . . . . . . . Parts Attached 56 | 6 1 1 12 2 22 5 4 2 1 Power 11 | 1 . . 2 . 4 4 . . . Engine 10 | 1 . . 2 . 4 3 . . . Core 1 | . . . . . . 1 . . . Reactor . | . . . . . . . . . . Propulsion 17 | 2 . . 4 2 9 . . . . Treads . | . . . . . . . . . . Leg 17 | 2 . . 4 2 9 . . . . Wheel . | . . . . . . . . . . Hover . | . . . . . . . . . . Flight . | . . . . . . . . . . Utility 16 | 1 1 1 4 . 6 1 2 . . Device 6 | . 1 1 2 . 1 . 1 . . Storage 2 | 1 . . 1 . . . . . . Processor 5 | . . . 1 . 2 1 1 . . Hackware 1 | . . . . . 1 . . . . Protection 2 | . . . . . 2 . . . . Artifact . | . . . . . . . . . . Weapon 12 | 2 . . 2 . 3 . 2 2 1 Energy Gun 3 | . . . . . 2 . 1 . . Energy Cannon 1 | . . . . . . . . . 1 Ballistic Gun 7 | 2 . . 2 . . . 1 2 . Ballistic Cannon . | . . . . . . . . . . Launcher 1 | . . . . . 1 . . . . Special Weapon . | . . . . . . . . . . Impact Weapon . | . . . . . . . . . . Slashing Weapon . | . . . . . . . . . . Piercing Weapon . | . . . . . . . . . . Special Melee Weapon . | . . . . . . . . . . Unidentified Prototypes 2 | . . . . . . 1 . 1 . Parts Lost 18 | . . 1 1 . 3 2 5 5 1 Power 4 | . . . . . . 2 1 1 . Propulsion 4 | . . . . . 1 . 1 2 . Utility 4 | . . 1 . . 1 . 1 1 . Weapon 6 | . . . 1 . 1 . 2 1 1 Highest Loss Streak 5 | . . 1 1 . 2 2 2 5 1 To Critical Strikes . | . . . . . . . . . . Average Slot Usage (%) 83 | . 95 100 88 100 96 96 82 25 . Engine 8 | . 14 14 10 11 9 8 6 . . Leg 21 | . 28 28 22 22 27 23 18 2 . Device 10 | . 10 14 22 22 7 . 6 2 . Storage 8 | . 14 14 11 11 9 7 6 2 . Processor 11 | . . . . 11 15 29 26 12 . Hackware 1 | . . . . . 2 7 1 . . Protection 2 | . . . . . 7 . . . . Energy Gun 3 | . . . . . 7 7 8 . . Ballistic Gun 12 | . 28 28 21 22 9 . 1 4 . Launcher 1 | . . . . . 1 7 1 . . Naked Turns 365 | . . . . . . . . 125 240 Heaviest Build 35 | 14 15 15 25 19 26 35 35 23 9 Greatest Support 50 | 20 20 20 20 20 44 44 50 40 3 Greatest Overweight (x) 2 | 1 . . 1 . . . . 1 2 Average Overweight (x) . | . . . . . . . . . . Largest Inventory Capacity 10 | 8 8 8 10 10 10 10 10 10 5 Average Capacity 9 | 7 8 8 9 10 10 10 10 7 5 Most Carried 10 | 3 6 8 10 10 10 9 6 5 5 Average Carried 7 | 1 4 7 8 9 9 7 5 3 5 Final Capacity 10 | 8 8 8 10 10 10 10 10 5 5 Final Carried 10 | 3 6 7 9 10 10 7 3 5 5 Class Distribution -------------------- 44% | Mutant 39% | Scavenger-Mutant 15% | Hacker-Mutant Dominant Class ---------------- Mutant | -10/Materials Mutant | -10/Mines Mutant | -9/Materials Scavenger-Mutant | -9/Mines Scavenger-Mutant | -8/Materials Hacker-Mutant | -7/Factory Mutant | -6/Factory Mutant | -5/Factory Mutant | -5/Extension Resources | -11 -10 -10 -9 -9 -8 -7 -6 -5 -5 ----------- Run | Yrd Mat Min Mat Min Mat Fac Fac Fac Ext Matter Collected 1270 | 132 99 200 250 49 239 11 201 84 5 Remotely . | . . . . . . . . . . Salvage Created 1772 | . 99 7 475 126 597 110 274 84 . Parts 112 | . 4 . 37 9 47 6 5 4 . Haulers Intercepted . | . . . . . . . . . . Recyclers Shooed 4 | . . 1 1 . . . . 1 1 Parts Field Recycled . | . . . . . . . . . . Retrieved Matter . | . . . . . . . . . . Parts Self-Destructed . | . . . . . . . . . . Prevented . | . . . . . . . . . . Kills | -11 -10 -10 -9 -9 -8 -7 -6 -5 -5 ------- Run | Yrd Mat Min Mat Min Mat Fac Fac Fac Ext Combat Hostiles Destroyed 52 | . 2 3 10 3 20 6 7 1 . Guns 42 | . 2 3 10 3 18 1 4 1 . AOE 10 | . . . . . 2 5 3 . . Classes Destroyed 12 | . 1 1 5 . 3 1 1 . . Worker 1 | . . . 1 . . . . . . Builder 3 | . . . . . 2 1 . . . Tunneler 1 | . . . . . . 1 . . . Recycler 1 | . . . 1 . . . . . . Mechanic 1 | . . . . . 1 . . . . Watcher 1 | . . . 1 . . . . . . Swarmer 13 | . . . 3 . 9 . 1 . . Grunt 26 | . 2 . 6 3 4 6 5 . . Brawler 1 | . . . . . . . 1 . . Sentry 7 | . . . 1 . 5 . . 1 . Hunter 2 | . . . . . 2 . . . . Assembled 3 | . . 3 . . . . . . . Best Kill Streak 5 | . 2 2 4 3 5 5 3 1 . Combat Bots Only 4 | . 2 2 3 3 4 3 3 1 . Max Kills in Single Turn 3 | . 1 1 2 1 3 2 2 1 . Gunslinging . | . . . . . . . . . . Exploded 2 | . . . . . 2 2 2 . . Melee . | . . . . . . . . . . Uniques/NPCs Destroyed . | . . . . . . . . . . Combat | -11 -10 -10 -9 -9 -8 -7 -6 -5 -5 -------- Run | Yrd Mat Min Mat Min Mat Fac Fac Fac Ext Hostile Shots Fired 479 | . 5 22 64 16 150 21 86 29 86 Missed 157 | . 1 8 20 8 46 6 26 9 33 Damage Taken 4191 | . 40 197 303 62 1029 248 893 430 989 Core 1463 | . . 9 62 . 117 41 217 171 846 Absorbed by Shields 206 | . . . 81 23 75 . . . 27 Ignored by Resistances 1249 | . 13 55 119 25 335 73 252 114 263 Regen/Repaired (Parts) 10 | . . . . . 10 . . . . Core Remaining (%) 87 | 100 . 96 . 84 78 94 74 . . Volleys Fired 153 | . 6 17 27 9 50 11 21 12 . Largest 2 | . 2 2 2 2 2 2 2 2 . Hottest 126 | . 40 40 40 40 96 96 126 45 . Shots Fired 298 | . 12 35 49 18 99 22 42 21 . Gun 280 | . 12 35 49 18 98 11 36 21 . Cannon . | . . . . . . . . . . Launcher 18 | . . . . . 1 11 6 . . Special . | . . . . . . . . . . Kinetic 202 | . 12 35 49 18 61 . 6 21 . Thermal 78 | . . . . . 37 11 30 . . Explosive 18 | . . . . . 1 11 6 . . Electromagnetic . | . . . . . . . . . . Robot Hit Streak 31 | . 5 8 10 9 20 28 29 31 . Robot Miss Streak 7 | . 1 2 2 1 7 1 1 1 . Penetration Max . | . . . . . . . . . . Secondary Targets 9 | . . . 3 1 4 . 1 . . Max Gunslinging Chain 1 | . . . 1 1 1 . 1 . . Shots Hit Robots 243 | . 9 25 33 14 85 19 39 19 . Core Hits 171 | . 4 8 21 8 77 23 25 5 . Critical Kills 2 | . . . 1 . 1 . . . . Critical Parts Destroyed . | . . . . . . . . . . Critical Strikes 5 | . . . 1 . 2 1 1 . . Burn 3 | . . . . . 1 1 1 . . Destroy 2 | . . . 1 . 1 . . . . Melee Attacks . | . . . . . . . . . . Impact . | . . . . . . . . . . Slashing . | . . . . . . . . . . Piercing . | . . . . . . . . . . Sneak Attacks . | . . . . . . . . . . Combat Hostiles . | . . . . . . . . . . Follow-up Attacks . | . . . . . . . . . . Damage Inflicted 4550 | . 113 277 407 152 1163 1072 1144 187 35 Guns 2711 | . 113 256 393 133 969 155 510 182 . Cannons . | . . . . . . . . . . Explosions 1677 | . . . . . 174 917 586 . . Melee . | . . . . . . . . . . Ramming 162 | . . 21 14 19 20 . 48 5 35 Kinetic 1539 | . 113 256 393 133 426 . 36 182 . Thermal 1172 | . . . . . 543 155 474 . . Explosive 1677 | . . . . . 174 917 586 . . Electromagnetic . | . . . . . . . . . . Impact . | . . . . . . . . . . Slashing . | . . . . . . . . . . Piercing . | . . . . . . . . . . Highest Corruption 1 | . . 1 . . 1 . . . . Average Corruption 1 | . . 1 . . 1 . . . . Corruption Purged . | . . . . . . . . . . Corruption Blocked . | . . . . . . . . . . Effects 3 | . . 2 . . 1 . . . . Matter Fused 2 | . . 1 . . 1 . . . . Misfires 1 | . . 1 . . . . . . . Overload Shots . | . . . . . . . . . . Overflow Damage 22 | . . 2 . . 20 . . . . Projectiles . | . . . . . . . . . . Explosions 20 | . . . . . 20 . . . . Melee 2 | . . 2 . . . . . . . Knockbacks 2 | . . . . . . . 1 . 1 Impact 2 | . . . . . . . 1 . 1 Kinetic . | . . . . . . . . . . Secondary . | . . . . . . . . . . Self-Inflicted Damage 130 | . . . . . 39 73 . 2 16 Shots 7 | . . . . . 1 6 . . . Rammed 9 | . . . . . . . . 1 8 Targets Rammed 28 | . . 7 1 2 5 . 4 1 8 Kicked 19 | . . 7 1 2 5 . 4 . . Crushed . | . . . . . . . . . . Highest Temperature 317 | . 2 . . . 129 218 317 7 . Average Temperature 77 | . 2 . . . 36 99 111 7 . Received Heat Transfer 1547 | . 30 49 153 44 326 153 394 129 269 Effects 2 | . . . . . . 1 1 . . Energy Bleed 2 | . . . . . . 1 1 . . Siege Activations . | . . . . . . . . . . Robots Corrupted . | . . . . . . . . . . Combat Hostiles . | . . . . . . . . . . Parts Fried . | . . . . . . . . . . Impact Corruptions 1 | . . 1 . . . . . . . Robots Melted . | . . . . . . . . . . Combat Hostiles . | . . . . . . . . . . Parts Melted . | . . . . . . . . . . Heat Transferred 2421 | . . . . . 904 407 1110 . . Parts Sabotaged . | . . . . . . . . . . Parts Stolen . | . . . . . . . . . . Parts Stripped . | . . . . . . . . . . Power Chain Reactions 1 | . . . . . . 1 . . . Alert | -11 -10 -10 -9 -9 -8 -7 -6 -5 -5 ------- Run | Yrd Mat Min Mat Min Mat Fac Fac Fac Ext Peak Influence 272 | . 74 95 255 96 237 261 246 113 272 Initial 109 | . . 24 . 26 31 39 109 103 47 Average 106 | . 40 73 106 63 115 126 191 97 113 Maximum Alert Level 1 | . . . 1 . 1 1 1 . 1 Low Security (%) 84 | 100 100 100 86 100 88 73 37 100 72 Level 1 15 | . . . 13 . 11 26 62 . 27 Level 2 . | . . . . . . . . . . Level 3 . | . . . . . . . . . . Level 4 . | . . . . . . . . . . Level 5 . | . . . . . . . . . . High Security . | . . . . . . . . . . Max Security . | . . . . . . . . . . Squads Dispatched 9 | . . 1 2 . 2 2 1 . 1 Investigation 3 | . . . 1 . 2 . . . . Extermination . | . . . . . . . . . . Reinforcement 5 | . . . 1 . . 2 1 . 1 Assault 1 | . . 1 . . . . . . . Garrison . | . . . . . . . . . . Intercept . | . . . . . . . . . . Searches Triggered . | . . . . . . . . . . Construction Impeded 2 | . . . . . . 1 1 . . Haulers Reinforced . | . . . . . . . . . . Active Scanning Responses . | . . . . . . . . . . Cargo Convoy Interrupts . | . . . . . . . . . . Stealth | -11 -10 -10 -9 -9 -8 -7 -6 -5 -5 --------- Run | Yrd Mat Min Mat Min Mat Fac Fac Fac Ext Distress Signals 4 | . . 1 . . 2 . . . 1 Communications Jammed . | . . . . . . . . . . Distress Signals . | . . . . . . . . . . Times Spotted 106 | . 3 11 18 3 30 7 10 3 21 Peak Tracking Total 12 | . 2 4 4 3 5 4 4 2 12 Tactical Retreats 7 | . . 2 . . 2 . . . 3 Traps | -11 -10 -10 -9 -9 -8 -7 -6 -5 -5 ------- Run | Yrd Mat Min Mat Min Mat Fac Fac Fac Ext Traps Triggered 3 | . . . 1 . . . 1 . 1 Indirectly . | . . . . . . . . . . Trap Hack Attempts . | . . . . . . . . . . Triggered . | . . . . . . . . . . Disarmed . | . . . . . . . . . . Reprogrammed . | . . . . . . . . . . Reused . | . . . . . . . . . . Traps Extracted . | . . . . . . . . . . Installed . | . . . . . . . . . . Triggered . | . . . . . . . . . . Machines | -11 -10 -10 -9 -9 -8 -7 -6 -5 -5 ---------- Run | Yrd Mat Min Mat Min Mat Fac Fac Fac Ext Machines Disabled 4 | . . . . . . 3 1 . . Max in Single Turn 1 | . . . . . . 1 1 . . Machines Repaired . | . . . . . . . . . . Machines Dismantled . | . . . . . . . . . . Machines Sabotaged . | . . . . . . . . . . Overloaded Fab Kills . | . . . . . . . . . . Hacking | -11 -10 -10 -9 -9 -8 -7 -6 -5 -5 --------- Run | Yrd Mat Min Mat Min Mat Fac Fac Fac Ext Machines Accessed 13 | . 2 . 5 . 5 1 . . . Terminals 10 | . 2 . 4 . 3 1 . . . Fabricators . | . . . . . . . . . . Repair Stations 1 | . . . . . 1 . . . . Recycling Units 2 | . . . 1 . 1 . . . . Scanalyzers . | . . . . . . . . . . Garrison Access . | . . . . . . . . . . Total Hacks 29 | . 6 . 10 . 11 2 . . . Successful 16 | . 4 . 4 . 6 2 . . . Failed 13 | . 2 . 6 . 5 . . . . Catastrophic 4 | . . . 1 . 3 . . . . Database Lockouts . | . . . . . . . . . . Manual . | . . . . . . . . . . Terminals 24 | . 6 . 9 . 7 2 . . . Fabricators . | . . . . . . . . . . Repair Stations 3 | . . . . . 3 . . . . Recycling Units 2 | . . . 1 . 1 . . . . Scanalyzers . | . . . . . . . . . . Garrison Access . | . . . . . . . . . . Terminal Hacks 12 | . 4 . 3 . 3 2 . . . Emergency Access Points 2 | . 2 . . . . . . . . Alert Level 3 | . 1 . 1 . 1 . . . . Unreport Threat 1 | . . . . . 1 . . . . Locate Traps 2 | . . . 1 . 1 . . . . Patrol Status 2 | . 1 . . . . 1 . . . Zone Layout 2 | . . . 1 . . 1 . . . Fabricator Hacks . | . . . . . . . . . . Repair Station Hacks 3 | . . . . . 3 . . . . Scan Component 2 | . . . . . 2 . . . . Repair 1 | . . . . . 1 . . . . Recycling Unit Hacks 1 | . . . 1 . . . . . . Process 1 | . . . 1 . . . . . . Scanalyzer . | . . . . . . . . . . Garrison Access Hacks . | . . . . . . . . . . Unauthorized Hacks . | . . . . . . . . . . Terminals . | . . . . . . . . . . Fabricators . | . . . . . . . . . . Repair Stations . | . . . . . . . . . . Recycling Units . | . . . . . . . . . . Scanalyzers . | . . . . . . . . . . Garrison Access . | . . . . . . . . . . Data Cores Recovered . | . . . . . . . . . . Used . | . . . . . . . . . . Hacking Detections 10 | . 2 . 3 . 4 1 . . . Full Trace Events 4 | . . . 2 . 2 . . . . Feedback Events 1 | . . . . . 1 . . . . Corruption 1 | . . . . . 1 . . . . Feedback Blocked . | . . . . . . . . . . Robot Schematics Acquired . | . . . . . . . . . . Robots Built . | . . . . . . . . . . Authchips . | . . . . . . . . . . Time . | . . . . . . . . . . Total Robot Build Rating . | . . . . . . . . . . Part Schematics Acquired . | . . . . . . . . . . Parts Built . | . . . . . . . . . . Authchips . | . . . . . . . . . . Time . | . . . . . . . . . . Total Part Build Rating . | . . . . . . . . . . Parts Repaired 1 | . . . . . 1 . . . . Time 26 | . . . . . 26 . . . . Parts Recycled . | . . . . . . . . . . Recycled Matter . | . . . . . . . . . . Retrieved Matter . | . . . . . . . . . . Retrieved Components . | . . . . . . . . . . Parts Scanalyzed . | . . . . . . . . . . Part Schematics Acquired . | . . . . . . . . . . Parts Damaged . | . . . . . . . . . . Bothacking | -11 -10 -10 -9 -9 -8 -7 -6 -5 -5 ------------ Run | Yrd Mat Min Mat Min Mat Fac Fac Fac Ext Used RIF Installer . | . . . . . . . . . . Robots Hacked . | . . . . . . . . . . Non-combat . | . . . . . . . . . . Combat . | . . . . . . . . . . Robot Hacks Applied . | . . . . . . . . . . Relay Couplers Released . | . . . . . . . . . . Fabnet Peak Effective % . | . . . . . . . . . . Robots Rewired 1 | . . . . . . . . . 1 Allies Hacked . | . . . . . . . . . . Hacks Repelled . | . . . . . . . . . . Allies | -11 -10 -10 -9 -9 -8 -7 -6 -5 -5 -------- Run | Yrd Mat Min Mat Min Mat Fac Fac Fac Ext Total Allies 2 | . . 1 . . . . . . 1 Largest Group 1 | . . 1 . . . . . . 1 Highest-Rated Group 31 | . . 31 . . . . . . 20 Highest-Rated Ally 31 | . . 31 . . . . . . 20 Total Orders . | . . . . . . . . . . Ally Attacks 12 | . . 10 . . . . . . 2 Total Damage 219 | . . 109 . . . . . . 110 Kills 3 | . . 3 . . . . . . . Allies Corrupted . | . . . . . . . . . . Allies Melted . | . . . . . . . . . . Intel | -11 -10 -10 -9 -9 -8 -7 -6 -5 -5 ------- Run | Yrd Mat Min Mat Min Mat Fac Fac Fac Ext Robot Analysis Total . | . . . . . . . . . . Derelict Logs Recovered . | . . . . . . . . . . Drone Launches . | . . . . . . . . . . Drone Recoveries . | . . . . . . . . . . Exploration | -11 -10 -10 -9 -9 -8 -7 -6 -5 -5 ------------- Run | Yrd Mat Min Mat Min Mat Fac Fac Fac Ext Turns Passed 3742 | 70 183 412 553 317 1030 339 359 223 256 Spaces Moved 2957 | 51 134 292 336 239 697 237 228 299 444 Core 724 | 10 . . . . . . . 270 444 Treads . | . . . . . . . . . . Legs 2233 | 41 134 292 336 239 697 237 228 29 . Wheels . | . . . . . . . . . . Hover . | . . . . . . . . . . Flight . | . . . . . . . . . . Fastest Speed 50 | 50 120 120 120 120 120 126 126 50 50 Average Speed 106 | 114 120 120 133 120 120 126 126 62 52 Slowest Speed 190 | 190 120 120 190 120 126 126 130 130 150 Overloaded Moves . | . . . . . . . . . . Propulsion Burnouts . | . . . . . . . . . . Robots Hopped . | . . . . . . . . . . Cave-ins Triggered . | . . . . . . . . . . Exploration Rate (%) 28 | 4 26 47 23 62 52 6 5 6 49 Regions Visited 9 Branch Regions 3 Pre-discovered Areas . | . . . . . . . . . . Known Exits Taken 3 | . . . . . 1 1 1 . . Unknown Exits Taken 6 | 1 1 1 1 1 . . . 1 . Scrap Searched . | . . . . . . . . . . Spaces Dug . | . . . . . . . . . . Terrain Destroyed 105 | . . . . . 10 84 11 . . Melee . | . . . . . . . . . . Projectile . | . . . . . . . . . . AOE 105 | . . . . . 10 84 11 . . Terrain Rammed . | . . . . . . . . . . Walls Destroyed . | . . . . . . . . . . Machines Disabled . | . . . . . . . . . . Actions | -11 -10 -10 -9 -9 -8 -7 -6 -5 -5 --------- Run | Yrd Mat Min Mat Min Mat Fac Fac Fac Ext Total 3259 | 59 143 318 393 252 797 256 256 319 466 Wait . | . . . . . . . . . . Move 2948 | 50 133 291 335 238 696 236 227 298 444 Hop . | . . . . . . . . . . Pick Up 26 | 3 3 2 6 . 7 1 . 4 . Fast Attach 19 | 6 1 . 4 . 5 2 . . 1 Attach 16 | . . 1 2 . 4 3 4 2 . Detach 5 | . . . 2 . 1 1 . 1 . Swap 21 | . . . 6 2 13 . . . . Drop 30 | . . . 10 1 16 2 . 1 . Fire 153 | . 6 17 27 9 50 11 21 12 . Melee . | . . . . . . . . . . Ram 9 | . . . . . . . . 1 8 Kick 19 | . . 7 1 2 5 . 4 . . Crush . | . . . . . . . . . . Escape Stasis 11 | . . . . . . . . . 11 Rewire 2 | . . . . . . . . . 2 Trap . | . . . . . . . . . . Miscellaneous . | . . . . . . . . . . Route ------- -11/Scrapyard -10/Materials -10/Mines -9/Materials -9/Mines (discovered 2 exits: *Mat / [*Zio]) -8/Materials -7/Factory (discovered 2 exits: *Fac x2) -6/Factory -5/Factory -5/Extension History --------- Turn | Location | Event 9 | -11/Scrapyard | Discovered new exit (range 15) 71 | -11/Scrapyard | Entered Materials 232 | -10/Materials | Discovered new exit (range 13) 254 | -10/Materials | Entered Mines 255 | -10/Mines | Met a Derelict testing a Signal Generator 313 | -10/Mines | Build established: Mutant 371 | -10/Mines | Assembled infested the area 376 | -10/Mines | Assisted by a Guerilla fighting off Assembled 643 | -10/Mines | Discovered new exit (range 15) 666 | -10/Mines | Entered Materials 666 | -9/Materials | Evolved 2 slots: Utility x2 1184 | -9/Materials | Discovered new exit (range 9) 1219 | -9/Materials | Entered Mines 1226 | -9/Mines | Received a Rocket Launcher from a helpful Derelict 1258 | -9/Mines | Build established: Scavenger-Mutant 1523 | -9/Mines | Discovered new exit (range 11) 1524 | -9/Mines | A Derelict revealed a hidden shortcut to a safe place 1536 | -9/Mines | Entered Materials 1536 | -8/Materials | Evolved 2 slots: Propulsion x1, Utility x1 1616 | -8/Materials | Repaired Aluminum Leg 2557 | -8/Materials | Discovered new exit (range 7) 2564 | -8/Materials | Identified exit to Factory 2566 | -8/Materials | Entered Factory 2566 | -7/Factory | Evolved 2 slots: Power x1, Utility x1 2728 | -7/Factory | Build established: Hacker-Mutant 2877 | -7/Factory | Discovered new exit (range 16) 2903 | -7/Factory | Discovered new exit (range 11) 2904 | -7/Factory | Identified exit to Factory 2905 | -7/Factory | Entered another Factory area 2905 | -6/Factory | Evolved 2 slots: Utility x2 3250 | -6/Factory | Discovered new exit (range 9) 3263 | -6/Factory | Identified exit to Factory 3264 | -6/Factory | Entered another Factory area 3264 | -5/Factory | Evolved 2 slots: Propulsion x1, Utility x1 3305 | -5/Factory | Build established: Mutant 3352 | -5/Factory | Lost 5 parts (1p2n1u1w) 3362 | -5/Factory | Released all parts (8) 3477 | -5/Factory | Discovered new exit (range 16) 3487 | -5/Factory | Entered Extension 3633 | -5/Extension | Core integrity fell below 50% 3730 | -5/Extension | Spotted B-75 Beast 3734 | -5/Extension | Spotted B-75 Beast 3738 | -5/Extension | Core integrity fell below 20% 3743 | -5/Extension | Destroyed by Y-64 Sentinel with KE Penetrator Last Messages --------------- 03628_ Slammed into R-10 Processor. 03628_ R-10 Processor knocked back. 03631_ Slammed into R-10 Processor. 03631_ Destabilizing: Core damaged (-20). 03632_ Slammed into R-10 Processor. 03638_ Slammed into U-05 Engineer. 03638_ Destabilizing: Core damaged (-20). 03640_ Slammed into U-05 Engineer. 03676_ U-05 Engineer enters Transfer Station. 03680_ U-05 Engineer exits Transfer Station. 03680_ T-07 Excavator exits Transfer Station. [Achievement: Slippery One] 03737_ Critical hit (Burn: +37). 03737_ Slug penetrates U-05 Engineer. 03737_ U-05 Engineer destroyed. 03737_ Knocked back. 03738_ Acquired 5 matter. 03740_ Machine disabled. 03742_ R-10 Processor collects Lgt. Ion Engine. 03743_ Penetrated by Slug. Map ----- +----------------------------------------------------+ | ?????????????????????????????????????????????????? | | ?????????????????????????????????????????????????? | | ?????????????????????????????????????????????????? | | ?????????????????????????????????????????????????? | | ?????????????????????????????????????????????????? | | ######???????????????????????????????????????????? | | % ! ????????????????????????????????????? | | ### #?????????????????????????????????????????? | | ?????????????????????????????????????????????????? | | ?????????????????????????????????????????????????? | | ??????????????????????? ?????????????????????????? | | ???????????? ?????????? ?????????????????????????? | | ???????????? ?????????? ?????????????????????????? | | ???????????# ?????????# #????????????????????????? | | ???????????/ #????????# ????????????????????????? | | ???????????# #????????# #????????????????????????? | | ???????????# #????????# #????????????????????????? | | ???????????# #????????# #????????????????????????? | | ???????????# #????????# #????????????????????????? | | ???????????# #?######?#g#????????????????????????? | | ?????????### ### ## ### ###??????????????????????? | | ?????????#""g"" YY " ""#??????????????????????? | | ?????????# " " R " #??????????????????????? | | ?????????# = % #??????????????????????? | | ???###???# % R #??????????????????????? | | ####"##### ! @#??????????????????????? | | ???????????????? | | ???????????? | | % ???????????? | | ??????????? | | u t t tkA R ???????????? | | ########## BB BB ############???????????? | | ?????????# BB BB #??????????????????????? | | ?????????# #??????????????????????? | | ?????????# #??????????????????????? | | ?????????# #??????????????????????? | | ?????????######T#"""#######??????????????????????? | | ??????????????###????????????????????????????????? | | ?????????????????????????????????????????????????? | | | | | | | | | | | | | | | | | | | | | | | +----------------------------------------------------+ Best States ------------- Heat Dissipation 52 Energy Generation 27 Energy Capacity 450 Matter Stores 300 Matter Capacity 300 Sight Range 18 Robot Scan Range 14 Terrain Scan Density 10 Additional Mass Support 6 Corruption Block 8 Armor Coverage 150 Resistance: KI 20 Resistance: TH 20 Resistance: EX 20 Resistance: EM 20 Resistance: I 20 Resistance: S 20 Resistance: P 20 Evasion (%) 55 Targeting Accuracy 14 Offensive Hacking 20 Item Schematics ----------------- None Robot Schematics ------------------ None Fabricated ------------ Nothing Alien Tech Used ----------------- None Achievements -------------- A New Friend Slippery One Challenges ------------ None Game ------ Seed RefineryFlyingSegregator Manual? 0 Play Time 00:57:35 Cumulative 37.3 hours Start 2024.03.15 @ 21:52:00 End 2024.03.15 @ 22:54:54 Sessions 1 Manual Loads 0 Difficulty Adventurer Special Mode None Game No. 73 Rogue 0 Adventurer 12 Explorer 61 Win Type - Total 0 Types 0/0/0/0/0/0/0/0/0 Lore% 7 Gallery% 27 Achievement% 24 Wizard Run 0 Options --------- Layout 0 ASCII 0 Keyboard 1 Movement Arrows Keybinds 0 Fullscreen 1 Font 18/SmallcapsGlow Map View 76x50 Zoom Use 0% Tactical HUD 1 Map Filters NONE Filters NONE Steam 1 RUN: fe9b4a76-307a-4275-9f99-4bf854ae9061